bitfinex/quotes_ETHUSD_20260207
["timestamp","ask_amount","ask_price","bid_price","bid_amount"]
[1770448774186,0.05588493,2016.4,2014.1,0.05588493]
[1770448774366,17.91534148,2016.1,2014.1,0.05588493]
[1770448774701,17.91534148,2015.7,2013.9,1.24136045]
[1770448774859,0.05588493,2015.4,2013.4,1.24166068]
[1770448775195,17.91534148,2014.4,2012.7,1.24211258]
[1770448775401,17.91534148,2014.4,2012.6,2.86002104]
[1770448775571,17.79252092,2014.5,2012.6,1.24216046]
[1770448775780,0.05588493,2014.4,2012.7,0.62108577]
[1770448775960,17.79252092,2014.1,2012.6,1.24217214]
[1770448776308,17.79252092,2014.0,2012.3,0.1246655]
[1770448776592,17.84840585,2014.4,2012.7,0.05588493]
[1770448776593,17.79252092,2014.4,2012.7,0.05588493]
[1770448776891,17.79252092,2014.4,2012.6,1.24215728]
[1770448777184,1.24112594,2014.3,2012.4,0.05588493]
[1770448777386,1.24112594,2014.3,2012.4,1.81313647]
[1770448777589,0.05588493,2014.1,2012.4,0.51497414]
[1770448777772,17.79252092,2014.0,2012.3,0.1246655]
[1770448777971,17.79252092,2014.1,2012.8,0.001]
[1770448778289,17.89492092,2014.2,2012.8,0.001]
[1770448778490,17.79252092,2014.2,2012.8,0.001]
[1770448778698,17.79252092,2012.9,2012.3,0.1246655]
[1770448778896,17.79252092,2012.9,2010.5,9.73677067]
[1770448778897,17.79252092,2012.1,2011.7,0.001]
[1770448779121,17.79252092,2012.5,2011.7,0.001]
[1770448779389,1.24229775,2012.4,2010.5,1.24346635]
[1770448779564,1.29818268,2012.4,2010.6,0.62173534]
[1770448779889,17.79252092,2012.1,2010.6,0.62173534]
[1770448780210,0.05588493,2012.0,2009.8,0.05588493]
[1770448780411,17.79252092,2011.4,2009.9,0.05588493]
[1770448780617,1.29818268,2012.4,2009.9,0.05588493]
[1770448780618,17.79252092,2012.3,2010.2,0.05588493]
[1770448780783,17.79252092,2011.5,2009.5,0.05588493]
[1770448780988,17.79252092,2011.9,2010.4,1.24350018]
[1770448781213,1.24291538,2011.4,2009.6,0.05588493]
[1770448781377,1.24291538,2011.4,2009.6,1.24401013]
[1770448781904,1.24291538,2011.4,2009.6,1.29989506]
[1770448782289,1.29880031,2011.4,2009.6,1.29990565]
[1770448782521,17.79252092,2011.1,2009.6,0.05588493]
[1770448782685,17.79252092,2011.1,2009.3,0.05588493]
[1770448783007,1.24291538,2011.4,2009.9,0.05588493]
[1770448783180,4.97166152,2011.6,2010.0,1.24378109]
[1770448783381,4.97166152,2011.6,2009.9,1.29969734]
[1770448783808,4.97166152,2011.6,2009.9,1.29971446]
[1770448784311,7.9253606,2011.6,2009.6,0.05588493]
[1770448784478,7.86947567,2011.6,2009.9,1.24383793]
[1770448784932,4.97166152,2011.6,2010.0,0.05588493]
[1770448785230,4.97166152,2011.6,2009.5,4.97623377]
[1770448785231,17.79252092,2011.3,2009.3,10.24014988]
[1770448785387,22.76418244,2011.6,2009.9,0.05588493]
[1770448785583,22.76418244,2011.6,2009.7,0.05588493]
[1770448785778,2.40628592,2011.5,2009.7,0.68350997]
[1770448785982,22.76418244,2011.6,2009.7,0.68350997]
[1770448786792,22.76418244,2011.6,2009.7,0.05588493]
[1770448786992,4.97166152,2011.6,2010.0,0.05588493]
[1770448787295,4.97166152,2011.6,2009.7,1.29984741]
[1770448787493,0.05588493,2011.5,2009.7,1.24395431]
[1770448787810,17.79252092,2011.3,2009.5,4.97632716]
[1770448787981,19.57736151,2011.3,2009.7,1.24395861]
[1770448788185,19.57736151,2011.3,2009.6,1.74720951]
[1770448788381,0.05588493,2011.2,2009.6,0.50322121]
[1770448788620,17.79252092,2010.9,2009.3,0.50337921]
[1770448788931,0.05588493,2011.2,2008.9,4.97878017]
[1770448788932,0.2335703,2011.1,2008.9,0.001]
[1770448789118,19.57736151,2011.3,2009.7,1.2439596]
[1770448789291,1.24303898,2011.2,2009.7,0.05588493]
[1770448790310,1.24303898,2011.2,2009.3,1.24420745]
[1770448790481,1.24303898,2011.2,2009.4,0.05588493]
[1770448790683,2.40077158,2011.1,2009.4,1.65167341]
[1770448790901,1.24303898,2011.2,2009.4,1.65167341]
[1770448791305,1.24303898,2011.2,2010.0,0.05588493]
[1770448791617,17.79252092,2010.8,2009.9,0.001]
[1770448791828,17.79252092,2010.4,2009.7,0.001]
[1770448791985,1.83513702,2010.3,2009.1,0.001]
[1770448792311,1.83513702,2010.3,2008.3,0.1246655]
[1770448792312,17.79252092,2009.2,2008.3,0.1246655]
[1770448792514,0.1024,2009.4,2008.4,0.001]
[1770448792821,0.1024,2009.4,2008.3,0.1246655]
[1770448792822,17.79252092,2008.9,2008.3,0.11239251]
[1770448792987,17.79252092,2009.4,2008.3,0.11339251]
[1770448793181,0.05588493,2009.2,2008.3,0.11239251]
[1770448793378,1.24446214,2008.9,2008.3,0.11339251]
[1770448793808,1.24446214,2008.9,2008.3,0.11239251]
[1770448794012,17.79252092,2008.7,2007.2,1.24550979]
[1770448794215,17.79252092,2008.7,2007.4,0.001]
[1770448794400,1.80260912,2008.6,2007.4,0.001]
[1770448794588,1.24446214,2008.9,2007.4,0.001]
[1770448794784,1.24446214,2008.9,2007.6,1.24525219]
[1770448794984,1.24446214,2008.9,2007.4,0.001]
[1770448795408,0.05588493,2008.7,2007.4,0.001]
[1770448795718,0.2335703,2008.8,2007.4,0.001]
[1770448796019,0.05588493,2008.4,2007.4,0.001]
[1770448796221,17.79252092,2008.6,2007.4,0.001]
[1770448796697,1.24446214,2008.9,2007.4,0.001]
[1770448797485,1.24446214,2008.9,2007.5,0.05588493]
[1770448797692,4.97708023,2009.3,2007.8,0.05588493]
[1770448798193,7.87613237,2009.3,2007.9,0.001]
[1770448798431,0.2335703,2008.9,2008.0,0.001]
[1770448798727,17.79252092,2009.0,2007.2,0.05688493]
[1770448798896,0.2335703,2009.2,2007.3,0.05588493]
[1770448799104,0.1024,2009.2,2007.3,0.05588493]
[1770448799415,1.47790856,2009.1,2007.4,0.001]
[1770448799638,0.05588493,2009.0,2007.4,0.001]
[1770448799795,0.2335703,2008.9,2007.4,0.001]
[1770448799988,1.24433826,2009.1,2007.4,0.001]
[1770448800214,0.28945523,2009.0,2007.4,0.001]
[1770448800401,1.22096256,2009.0,2007.4,0.001]
[1770448800591,1.24433826,2009.1,2007.8,0.05588493]
[1770448800794,4.97586704,2009.8,2008.4,0.05588493]
[1770448801088,1.24371921,2010.1,2008.5,0.001]
[1770448801318,1.24347177,2010.5,2008.9,1.24446214]
[1770448801493,1.24347177,2010.5,2009.0,0.001]
[1770448801700,4.97214032,2011.3,2008.9,1.24446214]
[1770448801701,1.24297717,2011.4,2010.0,0.05588493]
[1770448802044,4.97207796,2011.3,2009.4,9.68088574]
[1770448802323,17.79252092,2011.2,2009.5,0.96908857]
[1770448802525,17.79252092,2011.2,2009.5,1.0239735]
[1770448802751,17.79252092,2011.2,2009.6,0.001]
[1770448803124,0.05588493,2010.9,2009.6,0.001]
[1770448803426,17.84840585,2011.2,2009.6,0.001]
[1770448803427,1.2431626,2011.0,2009.6,0.001]
[1770448804018,1.2431626,2011.0,2008.7,14.71497509]
[1770448804019,0.48430207,2008.9,2007.1,0.25859758]
[1770448804213,0.25859757,2007.1,2005.7,4.98575703]
[1770448804525,0.25859757,2007.1,2005.3,9.68188574]
[1770448804526,18.05111849,2007.1,2005.4,1.24663408]
[1770448804704,0.25859757,2007.1,2005.5,1.59150562]
[1770448804903,0.25859757,2007.1,2005.7,9.73677067]
[1770448805131,0.25859757,2007.1,2005.8,0.05588493]
[1770448805441,0.25859757,2007.1,2006.1,0.05588493]
[1770448805651,1.24500177,2008.1,2006.4,0.05588493]
[1770448805806,1.8674651,2008.1,2006.4,0.05588493]
[1770448806003,0.00493213,2008.0,2006.4,0.05588493]
[1770448806444,0.00493213,2008.0,2007.4,0.001]
[1770448808437,0.3368084,2009.1,2007.7,9.15853903]
[1770448808648,1.24391003,2009.8,2008.2,0.05588493]
[1770448808959,1.24391003,2009.8,2007.7,9.15853903]
[1770448808960,0.00493213,2009.7,2007.7,9.15853903]
[1770448809117,0.00493213,2009.7,2008.0,0.05588493]
[1770448809440,0.00493213,2009.6,2008.0,0.05588493]
[1770448809648,0.00493213,2009.6,2008.1,1.24495792]
[1770448809934,22.82402531,2010.0,2008.3,0.05588493]
[1770448809935,0.00493213,2009.5,2008.3,0.05588493]
[1770448810139,0.00493213,2009.9,2008.6,0.05588493]
[1770448810368,1.24359548,2010.3,2008.6,0.05588493]
[1770448810735,0.00493213,2010.2,2008.6,0.05588493]
[1770448811164,0.00493213,2010.1,2008.8,0.05588493]
[1770448811536,1.24359548,2010.3,2008.5,1.24470998]
[1770448811537,0.00493213,2010.0,2008.5,1.24470998]
[1770448811734,0.00493213,2010.2,2008.6,1.57177795]
[1770448811964,0.00493213,2010.2,2008.6,1.62766288]
[1770448812133,0.00493213,2010.1,2008.6,1.62766288]
[1770448812538,0.00493213,2010.0,2008.6,1.62766288]
[1770448812735,0.00493213,2010.2,2008.6,1.62766288]
[1770448812968,0.00493213,2010.2,2008.7,0.28723729]
[1770448813141,0.00493213,2010.1,2008.7,0.28723729]
[1770448813337,0.00493213,2010.3,2008.7,0.28723729]
[1770448813536,0.00493213,2010.3,2008.8,1.24452409]
[1770448813743,0.00493213,2010.2,2008.8,1.24452409]
[1770448813938,0.00493213,2010.4,2008.9,0.65098578]
[1770448814335,0.00493213,2010.3,2008.9,0.65098578]
[1770448814539,4.9741345,2010.6,2008.9,0.65098578]
[1770448814540,0.00493213,2010.2,2008.9,0.65098578]
[1770448814849,0.00493213,2010.5,2008.9,0.65098578]
[1770448815439,0.00493213,2010.5,2008.9,10.20107617]
[1770448815663,0.00493213,2010.5,2009.0,2.38896022]
[1770448816070,0.00493213,2010.5,2009.3,9.55009039]
[1770448816252,0.00493213,2010.5,2009.6,0.05588493]
[1770448816465,0.00493213,2010.5,2009.3,9.55009039]
[1770448816466,0.00493213,2010.5,2009.4,0.05588493]
[1770448816649,0.00493213,2010.5,2009.7,0.05588493]
[1770448816851,0.00493213,2010.5,2009.4,0.05588493]
[1770448817050,0.00493213,2010.5,2009.4,1.01089397]
[1770448817652,0.00493213,2010.5,2009.5,1.24409056]
[1770448818072,0.00493213,2010.5,2009.4,0.95500904]
[1770448818274,0.00493213,2010.5,2009.2,4.97705545]
[1770448818459,0.00493213,2010.5,2009.3,1.24418579]
[1770448818656,0.00493213,2010.5,2009.2,1.24424077]
[1770448818841,0.002,2010.2,2009.0,1.14456003]
[1770448819043,0.002,2010.2,2009.2,1.24422143]
[1770448819297,0.00493213,2010.1,2009.4,1.24415005]
[1770448819577,0.002,2010.2,2009.3,4.97668572]
[1770448819742,0.002,2010.2,2009.2,1.30012767]
[1770448819944,0.002,2010.2,2008.9,1.89541035]
[1770448820278,0.002,2010.2,2009.0,4.97753831]
[1770448820453,0.002,2010.2,2009.2,1.2442727]
[1770448821062,0.002,2010.2,2009.2,10.79436309]
[1770448821249,0.002,2010.2,2009.2,1.24426033]
[1770448821447,0.002,2010.2,2009.4,0.6]
[1770448821690,0.002,2010.2,2009.5,1.29997549]
[1770448821979,0.002,2010.2,2009.6,0.62763378]
[1770448823792,0.002,2010.2,2009.7,1.24396676]
[1770448824654,0.002,2010.2,2009.3,4.97677378]
[1770448824860,0.002,2010.2,2009.6,1.24396797]
[1770448825055,0.002,2011.0,2009.6,1.24396797]
[1770448825256,0.002,2011.0,2009.7,0.62759675]
[1770448825588,0.002,2011.0,2010.1,0.05588493]
[1770448825793,0.002,2011.0,2009.7,0.62759675]
[1770448825977,0.002,2011.0,2009.7,1.87156283]
[1770448826180,0.002,2011.0,2009.7,0.62759675]
[1770448826364,0.002,2011.0,2009.5,1.24404182]
[1770448826558,0.05588493,2010.9,2009.0,9.49420546]
[1770448826862,5.27488493,2010.3,2008.5,1.24470998]
[1770448827269,0.05588493,2009.7,2008.8,0.6]
[1770448827479,0.05588493,2009.9,2007.8,9.49420546]
[1770448827803,0.05588493,2009.4,2007.9,2.20008424]
[1770448828292,1.47759896,2009.6,2007.9,2.20008805]
[1770448828478,1.24402866,2009.6,2007.9,1.24507901]
[1770448828677,1.24371921,2010.1,2008.0,9.55009039]
[1770448829073,1.24371921,2010.1,2008.6,0.05588493]
[1770448829262,1.24371921,2010.1,2008.9,0.05588493]
[1770448829463,1.24371921,2010.1,2008.6,0.05588493]
[1770448829731,4.97399349,2010.5,2009.2,0.05588493]
[1770448829991,1.24340992,2010.6,2009.2,1.30015407]
[1770448830391,1.2451766,2011.0,2009.8,0.05588493]
[1770448830595,1.2451766,2011.0,2009.5,0.05588493]
[1770448830894,1.2451766,2011.0,2009.8,0.05588493]
[1770448831107,1.2451766,2011.0,2009.6,0.05588493]
[1770448831272,1.2451766,2011.0,2009.9,0.05588493]
[1770448831767,0.002,2011.0,2009.9,1.2996956]
[1770448831968,0.002,2011.0,2010.0,0.62752229]
[1770448833289,0.001,2010.2,2010.0,0.62752229]
[1770448833494,0.001,2010.2,2009.9,1.2996956]
[1770448834307,0.002,2011.2,2009.9,1.24382288]
[1770448834469,0.002,2011.2,2009.9,1.24381003]
[1770448834665,0.002,2011.2,2009.4,0.05588493]
[1770448834880,0.002,2011.2,2009.7,0.05588493]
[1770448835198,0.002,2011.2,2009.9,1.24378858]
[1770448835392,0.002,2011.2,2010.0,0.62192369]
[1770448835610,0.002,2011.2,2009.9,1.24382988]
[1770448835766,0.002,2011.2,2010.3,0.05588493]
[1770448835972,17.8453476,2011.2,2009.6,1.24397054]
[1770448836200,0.002,2011.2,2009.7,0.05588493]
[1770448836368,0.002,2011.2,2010.0,1.24377504]
[1770448836568,0.002,2011.2,2010.1,0.67777487]
[1770448837595,0.002,2011.2,2010.1,0.62188994]
[1770448837796,0.002,2011.2,2009.8,1.2997389]
[1770448838162,0.002,2011.2,2009.7,1.24393288]
[1770448838499,0.2355703,2011.2,2009.4,1.24411108]
[1770448838707,0.2355703,2011.2,2009.3,5.03269496]
[1770448838708,0.2335703,2011.0,2009.3,1.30008802]
[1770448838876,0.2335703,2010.8,2008.9,0.05588493]
[1770448839082,0.2335703,2010.4,2008.5,1.24467398]
[1770448839268,17.83440784,2010.3,2008.6,0.62235733]
[1770448839469,0.2335703,2010.2,2008.4,1.24474285]
[1770448839669,0.2335703,2010.2,2008.5,1.24467018]
[1770448839863,1.24371921,2010.1,2008.4,4.97908551]
[1770448840090,1.24371921,2010.1,2008.9,0.05588493]
[1770448840302,4.97487687,2010.2,2008.9,0.05588493]
[1770448840303,4.97330716,2010.8,2009.2,0.05588493]
[1770448840615,4.97251403,2011.1,2009.5,0.05588493]
[1770448841174,4.97251403,2011.1,2009.2,0.05588493]
[1770448841371,17.83440784,2010.7,2008.9,0.05588493]
[1770448841569,22.80692187,2011.1,2008.9,0.05588493]
[1770448841800,22.80692187,2011.1,2009.2,0.05588493]
[1770448842109,1.24322442,2010.9,2009.3,1.2442144]
[1770448842526,1.24322442,2010.9,2009.5,0.05588493]
[1770448842678,1.24322442,2010.9,2009.2,1.30015488]
[1770448843982,18.06797814,2010.6,2008.7,4.97820515]
[1770448844178,1.93113262,2010.5,2008.8,0.62786761]
[1770448844377,17.83440784,2010.6,2008.9,0.05588493]
[1770448845386,17.83440784,2010.6,2009.0,0.001]
[1770448846112,1.24347177,2010.5,2009.0,0.001]
[1770448846415,0.1024,2010.4,2009.0,0.001]
[1770448846579,0.05588493,2010.0,2009.0,0.001]
[1770448846777,0.2335703,2010.3,2009.0,0.001]
[1770448847192,18.06797814,2010.2,2009.0,0.001]
[1770448847490,2.83725728,2010.1,2009.0,0.001]
[1770448847690,17.83440784,2009.8,2009.0,0.001]
[1770448848094,1.24396676,2009.7,2009.0,0.001]
[1770448849398,17.83440784,2009.4,2008.2,0.001]
[1770448850235,1.2442144,2009.3,2008.2,0.001]
[1770448850394,17.83440784,2009.0,2008.2,0.001]
[1770448850596,19.64120565,2009.0,2008.0,0.001]
[1770448850820,19.64120565,2009.0,2007.4,0.001]
[1770448850998,19.64120565,2009.0,2007.4,1.24635577]
[1770448851196,19.64120565,2009.0,2008.4,0.05588493]
[1770448851197,1.80679781,2009.0,2008.4,0.05588493]
[1770448851415,1.2442144,2009.3,2008.8,0.05588493]
[1770448851596,1.2442144,2009.3,2008.1,0.05588493]
[1770448851914,0.2335703,2009.0,2007.7,0.05588493]
[1770448852114,1.24446214,2008.9,2007.4,0.001]
[1770448852630,5.03339362,2009.3,2007.4,0.001]
[1770448852631,1.24415248,2009.4,2007.4,9.40259085]
[1770448852828,1.24415248,2009.4,2008.1,0.05588493]
[1770448853900,1.24396676,2009.7,2008.7,0.05588493]
[1770448854095,1.24396676,2009.7,2008.4,0.05588493]
[1770448854096,4.97586704,2009.9,2008.5,1.24470998]
[1770448854323,4.97586704,2009.9,2008.4,1.30061522]
[1770448854521,17.83440784,2009.4,2008.1,4.97966906]
[1770448854721,18.93198125,2009.8,2008.4,1.24474148]
[1770448854933,18.82958125,2009.8,2008.4,1.24474148]
[1770448855512,0.99517341,2009.8,2008.4,1.24474148]
[1770448855715,4.97586704,2010.0,2008.4,1.24474148]
[1770448856837,4.97586704,2010.0,2008.3,1.3007147]
[1770448858829,0.2335703,2009.9,2008.3,1.30071537]
[1770448859140,4.97586704,2010.0,2008.3,1.30071537]
[1770448859342,0.002,2009.6,2008.3,1.30071537]
[1770448859542,0.002,2009.6,2008.4,0.62810747]
[1770448859740,0.002,2009.6,2008.6,0.05588493]
[1770448859908,0.002,2009.6,2008.4,0.62810747]
[1770448860109,0.002,2009.6,2008.2,4.98035936]
[1770448860110,1.34655248,2009.4,2008.2,0.001]
[1770448860315,1.24415248,2009.4,2008.2,0.001]
[1770448860940,1.24412359,2009.5,2008.3,0.05588493]
[1770448861445,1.24603199,2009.6,2008.4,0.05588493]
[1770448861612,0.002,2009.6,2008.7,0.05588493]
[1770448861814,0.002,2009.8,2009.4,0.05588493]
[1770448862013,0.002,2011.1,2010.0,0.05588493]
[1770448862213,17.83440784,2011.4,2009.7,4.975834]
[1770448862512,17.83440784,2011.4,2010.0,1.24377185]
[1770448862940,0.002,2011.3,2010.0,1.24377185]
[1770448863126,0.002,2011.6,2010.0,1.24377185]
[1770448863334,0.002,2011.5,2010.4,9.40159085]
[1770448863534,0.002,2012.1,2010.1,11.0195327]
[1770448863535,0.002,2011.7,2010.1,11.0195327]
[1770448863735,1.24455577,2012.0,2010.6,9.40159085]
[1770448864140,1.24273002,2011.7,2010.3,0.6]
[1770448864446,1.24273002,2011.7,2010.2,1.243624]
[1770448864447,17.83440784,2011.4,2010.2,1.243624]
[1770448864751,17.83440784,2011.0,2009.6,4.97605786]
[1770448865051,17.83440784,2011.0,2008.8,9.40159085]
[1770448865052,0.002,2011.3,2010.3,1.24356588]
[1770448865247,1.24258742,2012.0,2010.3,10.64515673]
[1770448865449,0.002,2011.9,2010.3,10.64515673]
[1770448865622,0.002,2012.1,2010.9,9.40159085]
[1770448865951,0.002,2012.1,2010.3,1.29945081]
[1770448865952,0.002,2012.1,2011.1,8.72650898]
[1770448866119,0.002,2012.1,2011.2,9.96954796]
[1770448866316,0.002,2012.0,2011.2,9.96954796]
[1770448866756,0.002,2012.0,2010.9,1.24318362]
[1770448867048,0.002,2012.0,2011.1,1.29898555]
[1770448867226,0.002,2012.0,2011.4,0.05588493]
[1770448867429,17.83440784,2012.8,2011.4,0.05588493]
[1770448867430,23.13531257,2014.1,2012.5,0.05588493]
[1770448867627,0.33566144,2014.1,2013.1,0.05588493]
[1770448867834,0.33557063,2015.7,2014.4,0.05588493]
[1770448868044,0.33557063,2015.7,2015.1,0.05588493]
[1770448868260,1.23958746,2016.8,2015.6,1.24030035]
[1770448868553,17.83440784,2016.0,2014.2,13.69123514]
[1770448868718,17.83440784,2015.6,2013.7,0.31498052]
[1770448868926,0.05588493,2015.5,2013.7,0.31498052]
[1770448869122,9.66388232,2015.6,2013.7,1.2414691]
[1770448869123,17.83440784,2015.3,2013.7,1.2414691]
[1770448869343,26.67311621,2016.3,2014.4,0.05588493]
[1770448869545,1.90739953,2016.7,2015.1,0.05588493]
[1770448869936,1.23958746,2016.8,2015.4,0.05588493]
[1770448870141,5.29471566,2017.0,2015.4,0.05588493]
[1770448870142,4.95834986,2016.9,2015.4,0.05588493]
[1770448870452,4.95834986,2016.9,2015.2,0.05588493]
[1770448870652,4.95834986,2016.9,2015.8,0.05588493]
[1770448870819,4.95834986,2016.9,2015.5,0.05588493]
[1770448871023,4.95834986,2016.9,2015.8,0.05588493]
[1770448871321,4.95834986,2016.9,2015.5,0.05588493]
[1770448871322,0.002,2017.3,2016.6,0.05588493]
[1770448871520,0.1246655,2018.3,2017.1,0.05588493]
[1770448871759,0.33253152,2019.1,2018.4,0.05588493]
[1770448871926,0.33253152,2019.1,2017.8,9.58701912]
[1770448872123,1.57073101,2019.1,2017.1,9.58701912]
[1770448872354,17.83440784,2018.9,2017.4,0.05588493]
[1770448872556,17.83440784,2018.5,2016.5,0.05588493]
[1770448872757,0.002,2016.7,2015.9,9.58701912]
[1770448873054,0.1024,2018.0,2015.9,9.58701912]
[1770448873055,0.1024,2018.1,2016.5,0.05588493]
[1770448873258,0.002,2016.9,2016.8,0.05588493]
[1770448873421,26.67311621,2018.9,2017.1,0.05588493]
[1770448873729,1.57073101,2019.1,2017.1,0.05588493]
[1770448873932,0.002,2017.8,2017.4,0.05588493]
[1770448874133,0.002,2017.8,2017.1,0.05588493]
[1770448874323,0.002,2017.8,2017.4,0.05588493]
[1770448874524,0.002,2017.8,2016.5,0.05588493]
[1770448874762,17.83640784,2017.8,2016.1,0.05588493]
[1770448874928,1.79388078,2017.7,2015.9,4.9169287]
[1770448875122,17.83440784,2017.4,2015.7,1e-08]
[1770448875355,19.62828862,2017.7,2015.5,9.58701912]
[1770448875556,1.79388078,2017.7,2016.1,5.01585369]
[1770448875759,0.2355703,2017.8,2015.8,0.05588493]
[1770448875933,0.002,2017.8,2016.1,0.05588493]
[1770448876333,0.002,2017.8,2014.9,10.77185659]
[1770448876334,17.83440784,2017.2,2014.9,10.77185659]
[1770448876533,0.1024,2017.1,2015.0,0.05588493]
[1770448876857,0.3359703,2016.6,2014.6,0.05588493]
[1770448877042,0.3359703,2016.6,2014.3,13.33234235]
[1770448877043,0.2335703,2016.1,2014.3,3.80120816]
[1770448877223,17.83440784,2015.7,2014.3,3.80120816]
[1770448877425,17.83440784,2015.3,2014.0,1.24126495]
[1770448877627,0.3359703,2015.6,2014.1,0.05588493]
[1770448877958,1.81703781,2015.6,2013.8,0.05588493]
[1770448878255,0.3359703,2015.3,2013.7,1e-08]
[1770448878462,1.24044854,2015.4,2014.0,0.05588493]
[1770448878758,0.1024,2015.3,2013.7,0.05588494]
[1770448878954,1.24044854,2015.4,2014.0,0.05588493]
[1770448879173,1.24044854,2015.4,2013.7,0.05588494]
[1770448879364,1.24044854,2015.4,2014.3,0.05588493]
[1770448880358,1.240387,2015.6,2014.6,0.05588493]
[1770448880757,17.83440784,2016.2,2014.6,0.05588493]
[1770448880758,1.23995635,2016.2,2015.2,0.05588493]
[1770448881074,4.95957942,2016.4,2014.3,1.2969669]
[1770448881250,0.1024,2016.3,2014.7,0.05588493]
[1770448881450,5.20862265,2016.4,2014.7,0.05588493]
[1770448881853,4.95957942,2016.4,2015.3,0.05588493]
[1770448882051,1.9076172,2016.5,2015.3,0.05588493]
[1770448882376,0.2335703,2016.3,2014.7,0.05588493]
[1770448882584,0.2335703,2016.3,2014.4,0.62614707]
[1770448882886,0.2335703,2016.0,2014.3,0.05588493]
[1770448883113,0.2335703,2016.0,2014.3,1.29700949]
[1770448883376,0.1024,2016.3,2014.6,0.05588493]
[1770448883586,1.9076172,2016.5,2014.7,1.2408543]
[1770448883762,2.57251126,2016.4,2014.8,0.62602574]
[1770448883949,1.9076172,2016.5,2015.2,0.05588493]
[1770448884155,0.66780598,2016.5,2015.3,0.05588493]
[1770448884354,1.90762578,2016.5,2015.3,1.29638237]
[1770448884577,1.90762578,2016.5,2014.9,0.05588493]
[1770448884753,1.90762578,2016.5,2015.1,1.24062018]
[1770448884949,0.68666623,2016.4,2015.1,1.24063095]
[1770448885166,0.68666623,2016.4,2015.1,1.240592]
[1770448885363,0.68666623,2016.4,2014.9,1.24073864]
[1770448885588,1.90762578,2016.5,2015.0,0.05588493]
[1770448885789,1.90762578,2016.5,2015.1,0.05588493]
[1770448885969,1.90762578,2016.5,2015.2,1.24053353]
[1770448886157,1.90762578,2016.5,2015.1,0.05588493]
[1770448886492,0.1024,2016.1,2014.9,0.001]
[1770448886677,0.1024,2015.7,2014.7,0.001]
[1770448886879,0.1024,2015.5,2014.7,0.001]
[1770448887077,0.1024,2015.5,2013.7,1.29734198]
[1770448887278,0.28945523,2015.2,2013.8,0.001]
[1770448887609,0.3359703,2015.4,2013.8,0.001]
[1770448887784,0.2335703,2014.4,2012.5,0.05588493]
[1770448888097,0.2335703,2014.4,2011.6,0.05588493]
[1770448888098,0.05588493,2013.9,2011.6,0.05588493]
[1770448888278,0.05588493,2013.9,2011.4,0.001]
[1770448888279,1.34432747,2013.0,2011.4,0.001]
[1770448888593,0.1024,2012.6,2011.4,0.001]
[1770448888801,2.41464452,2012.9,2011.5,0.05588493]
[1770448888985,0.3359703,2013.4,2011.4,0.001]
[1770448889189,0.2335703,2012.8,2011.4,0.001]
[1770448889390,0.05588493,2013.1,2011.4,0.001]
[1770448889594,1.78902928,2013.1,2011.4,0.001]
[1770448889902,1.65855763,2013.4,2011.8,0.05588493]
[1770448890099,1.65855763,2013.4,2012.1,0.05588493]
[1770448890303,2.90024201,2013.4,2012.1,0.05588493]
[1770448890476,2.90024201,2013.4,2012.4,1.24229574]
[1770448890477,1.65855763,2013.4,2012.4,1.24229574]
[1770448890675,1.65855763,2013.4,2012.5,0.05588493]
[1770448890874,1.65855763,2013.4,2012.5,0.6826221]
[1770448891100,1.24141193,2013.9,2012.8,0.05588493]
[1770448891303,4.9641461,2014.5,2012.5,0.6826221]
[1770448892288,4.9641461,2014.5,2012.8,1.29788059]
[1770448892497,1.24100273,2014.6,2013.1,0.05588493]
[1770448892706,0.62045951,2014.5,2013.1,0.05588493]
[1770448892918,0.62045951,2014.5,2012.8,1.29788059]
[1770448893410,1.24075636,2014.9,2013.4,0.05588493]
[1770448893578,1.24075636,2014.9,2012.8,1.29788059]
[1770448893579,1.24075636,2014.9,2013.5,0.05588493]
[1770448894212,1.24072161,2015.0,2013.5,0.05588493]
[1770448894413,5.34229411,2015.1,2013.5,0.05588493]
[1770448894414,0.37972835,2015.1,2014.1,0.05588493]
[1770448894619,1.62038087,2015.1,2013.8,0.05588493]
[1770448894928,2.27867224,2015.1,2013.5,1.29749942]
[1770448895092,1.62038087,2015.1,2013.8,0.05588493]
[1770448895511,0.37972835,2015.1,2013.8,0.05588493]
[1770448895684,0.37972835,2015.1,2014.2,0.05588493]
[1770448895998,1.24007936,2016.0,2014.8,0.05588493]
[1770448896206,1.24200612,2016.2,2014.8,0.05588493]
[1770448896398,0.33589574,2016.7,2015.4,0.05588493]
[1770448896583,0.33589574,2016.7,2015.2,1.24057165]
[1770448896584,1.23965941,2016.7,2015.2,1.24057165]
[1770448896783,26.72417027,2016.1,2014.5,0.05588493]
[1770448896984,2.67241703,2016.0,2014.5,0.05588493]
[1770448897215,0.15828493,2016.2,2014.1,0.05588493]
[1770448897412,18.00147283,2015.8,2013.9,1.24136245]
[1770448897627,0.05588493,2015.6,2013.8,5.02157214]
[1770448897788,18.00147283,2015.8,2013.9,1.24133443]
[1770448898096,0.28945523,2015.6,2013.9,1.24131846]
[1770448898298,1.24051009,2015.3,2013.9,0.62072368]
[1770448898498,1.24051009,2015.3,2013.8,1.24142837]
[1770448898697,1.24051009,2015.3,2013.9,1.24137125]
[1770448898905,1.24051009,2015.3,2014.0,0.05588493]
[1770448899211,1.24051009,2015.3,2013.7,1.241466]
[1770448899408,1.24051009,2015.3,2013.6,0.001]
[1770448899608,2.35696918,2015.3,2013.9,1.2413255]
[1770448899995,17.76790253,2015.1,2013.6,0.001]
[1770448900317,1.24081794,2014.8,2013.6,0.001]
[1770448900693,4.96243939,2015.2,2013.7,0.05588493]
[1770448901195,0.2335703,2015.1,2013.6,0.001]
[1770448901411,0.2335703,2014.9,2013.6,0.001]
[1770448901815,2.59356772,2015.1,2013.6,0.001]
[1770448902016,0.3359703,2015.0,2013.6,0.001]
[1770448902197,17.76790253,2014.8,2013.6,0.001]
[1770448902390,1.24087953,2014.7,2013.6,0.001]
[1770448902589,2.39723002,2014.6,2013.6,0.001]
[1770448903227,2.39723002,2014.6,2012.5,0.62773717]
[1770448903228,0.05588493,2014.0,2012.5,0.001]
[1770448903415,0.05588493,2013.3,2011.4,0.001]
[1770448903600,0.05588493,2013.3,2011.8,1.24261853]
[1770448903601,0.2335703,2013.3,2011.8,1.24261853]
[1770448903801,0.1024,2013.4,2011.4,0.001]
[1770448904002,0.2335703,2012.9,2011.4,0.001]
[1770448904260,0.05588493,2012.7,2011.4,0.001]
[1770448904460,0.05588493,2012.6,2011.4,0.001]
[1770448904623,0.2335703,2012.8,2011.4,0.001]